[Event "Czech Open-E Teams 2022"]
[Site "Pardubice"]
[Date "2022.07.17"]
[Round "7.32"]
[White "Kosut, Tomas"]
[Black "Rut, Vojtech"]
[Result "0-1"]
[ECO "B51"]
[WhiteElo "1820"]
[BlackElo "2080"]
[Annotator "TA"]
[PlyCount "96"]
[EventDate "2022.07.14"]
[EventType "team-tourn"]
[EventCountry "CZE"]
[SourceTitle "playchess.com"]
[Source "ChessBase"]
[SourceQuality "1"]
[TimeControl "5400+30"]

{[%evp 9,96,0,11,0,27,14,13,0,51,-12,12,0,0,-37,0,-55,-59,-87,-85,-98,-85,-117,-126,-374,-384,-426,-364,-426,-406,-398,-386,-485,-493,-477,-461,-713,-260,-260,-270,-270,-256,-374,-377,-353,-304,-352,-347,-341,-322,-381,-373,-829,-799,-970,-964,-1109,-1064,-3584,-3080,-2861,-2666,-2350,-2235,-1253,-5197,-1816,-1022,-1015,-1005,-1002,-974,-962,-932,-919,-879,-733,-458,-453,-445,-29977,-29978,-29984,-29979,-29979,-2295,-29984,-29984,-29984,-29985]} 1. e4 c5 2. Nf3 d6 3. Bb5+ Nd7 4. O-O a6 5. Bxd7+ Bxd7 6. d3 {B51: Sicilian: Moscow Variation (3 Bb5+) without 3...Bd7.} g6 7. Nc3 {[%emt 0:17:04]} Bg7 {[%emt 0:04:16]} 8. Be3 {[%emt 0:02:06] [#] The position is equal.} e5 $146 {[%emt 0:08:43] Inhibits d4.} (8... Nf6 $11) ({Predecessor:} 8... Nf6 9. h3 Qc7 10. Qd2 h6 11. Rae1 g5 12. d4 e5 13. dxe5 dxe5 14. Rd1 g4 15. hxg4 Bxg4 {½-½ (46) Pilarte,R (2250)-Reyes Najera,C (2235) San Salvador 1998}) 9. h3 {[%emt 0:05:21]} (9. b4 $14) 9... f5 {[%emt 0:02:04]} 10. exf5 {[%emt 0:01:22]} gxf5 {[%emt 0:02:33]} 11. Bg5 {[%emt 0:14:47]} Nf6 {[%emt 0:02:56]} (11... Bf6 $5 {[%cal Rf6g5]} 12. Nd5 Bc6 13. Nxf6+ Nxf6 $11) 12. Re1 {[%emt 0:06:13]} (12. Nh4 $11) 12... O-O $1 $15 {[%emt 0:00:54]} 13. Qd2 {[%emt 0:05:00]} Bc6 {[%emt 0:03:27]} 14. Nh4 {[%emt 0:05:59]} Qd7 {[%emt 0:00:30]} 15. f4 {[%emt 0:00:53]} h6 {[%emt 0:02:50]} 16. Ng6 $2 {[%emt 0:07:54] This costs White the game.} (16. fxe5 $17 {keeps fighting.} hxg5 17. e6) 16... hxg5 $19 {[%emt 0:01:32]} 17. Nxf8 {[%emt 0:01:09]} Rxf8 {[%emt 0:03:07]} ({Wrong is} 17... Bxf8 $2 18. fxe5 dxe5 19. Qxg5+ Kf7 20. Rxe5 Qd4+ 21. Qe3 $19) 18. fxe5 {[%emt 0:01:06]} dxe5 {[%emt 0:03:12]} 19. Qxg5 {[%emt 0:02:25]} Nh7 {[%emt 0:02:32]} 20. Qh5 {[%emt 0:03:16]} Qd4+ {[%emt 0:11:41]} 21. Kh1 {[%emt 0:02:26]} Qf2 {[%emt 0:05:07][%csl Gc6,LRc2,LRg2][%cal Rf2g2]} 22. Re2 {[%emt 0:05:22]} (22. Rg1 $142) 22... Bxg2+ $2 $40 {[%emt 0:00:50][%mdl 128] Black goes for the king.} (22... Qf4 23. Ree1 Qg3) 23. Kh2 {[%emt 0:00:06] [#]} Bf3+ $1 {[%emt 0:00:20]} 24. Rxf2 {[%emt 0:00:06]} Bxh5 {[%emt 0:00:01] A strong pair of Bishops.} 25. Nd5 {[%emt 0:01:23]} (25. Raf1 $142) 25... f4 {[%emt 0:03:21]} 26. Rg1 {[%emt 0:01:23]} f3 {[%emt 0:04:09][%cal Oe5e4] Prevents Rfg2.} 27. Ne7+ {[%emt 0:02:10]} Kf7 {[%emt 0:02:20]} 28. Nf5 {[%emt 0:00:21]} Bf6 {[%emt 0:03:17]} 29. Ng3 {[%emt 0:05:55]} Bh4 {[%emt 0:01:15]} 30. Nxh5 $2 {[%emt 0:00:12]} (30. Rgf1 Bxg3+ 31. Kxg3) 30... Bxf2 {[%emt 0:00:09]} 31. Rg7+ {[%emt 0:00:05]} Ke6 {[%emt 0:00:57] aiming for ...Nf6.} 32. Rxh7 {[%emt 0:00:20][%mdl 4096] Endgame KRB-KRN} Be3 {[%emt 0:00:11] Hoping for ...f2.} 33. Rxb7 {[%emt 0:05:31]} f2 {[%emt 0:02:16]} 34. Rb6+ {[%emt 0:00:30]} Ke7 {[%emt 0:01:51]} 35. Ng3 {[%emt 0:02:09]} Bf4 {[%emt 0:01:25]} 36. Kg2 {[%emt 0:00:23]} Bxg3 {[%emt 0:00:23] KRB-KR} 37. Kf1 {[%emt 0:00:20]} Rh8 {[%emt 0:02:35]} 38. Rb7+ {[%emt 0:01:11]} Ke6 {[%emt 0:01:10]} 39. Rb6+ {[%emt 0:00:12]} Kf5 {[%emt 0:04:10]} 40. Rb7 {[%emt 0:00:18]} Rxh3 {[%emt 0:00:38]} 41. Kg2 {[%emt 0:01:52] Against Rh1} Rh2+ {[%emt 0:07:22]} 42. Kxg3 {[%emt 0:00:28]} f1=N+ {[%emt 0:00:09] KRN-KR} ({Resist} 42... Rh7 43. Rxh7 f1=N+ 44. Kf2 $18) 43. Kf3 {[%emt 0:00:06]} Rxc2 {[%emt 0:00:16] Strongly threatening ...c4.} 44. a4 {[%emt 0:01:14] [#]} (44. Rf7+ $19 Ke6 45. Rb7) 44... c4 {[%emt 0:02:19][%cal Bc5c4,Bc4d3,Bd3d2][%mdl 32]} 45. Rb8 {[%emt 0:02:52]} cxd3 {[%emt 0:00:33][%csl Gf5][%cal Re5e4]} 46. Rf8+ {[%emt 0:00:08]} Ke6 {[%emt 0:00:53] ( -> ...Rc4)} 47. Rd8 {[%emt 0:01:05]} d2 {[%emt 0:01:24]} 48. Ke2 {[%emt 0:01:04]} Rc1 {[%emt 0:00:32] Weighted Error Value: White=0.87/Black=0.42} 0-1

[Event "Czech Open-E Teams 2022"]
[Site "Pardubice"]
[Date "2022.07.17"]
[Round "7.33"]
[White "Hlavina, Matous"]
[Black "Petr, Martin"]
[Result "1/2-1/2"]
[ECO "B01"]
[WhiteElo "2133"]
[BlackElo "2500"]
[Annotator "ChessBase"]
[PlyCount "94"]
[EventDate "2022.07.14"]
[EventType "team-tourn"]
[EventCountry "CZE"]
[SourceTitle "playchess.com"]
[Source "ChessBase"]
[SourceQuality "1"]
[TimeControl "5400+30"]

1. e4 {[%emt 0:00:03]} d5 {[%emt 0:00:10]} 2. exd5 {[%emt 0:00:10]} Qxd5 {[%emt 0:00:06]} 3. Nc3 {[%emt 0:00:08]} Qa5 {[%emt 0:00:08]} 4. Bc4 {[%emt 0:00:13]} Nf6 {[%emt 0:00:05]} 5. Nge2 {[%emt 0:00:10]} c6 {[%emt 0:02:37]} 6. d4 {[%emt 0:01:14]} g6 {[%emt 0:06:27]} 7. O-O {[%emt 0:02:18]} Bg7 {[%emt 0:00:37]} 8. h3 {[%emt 0:07:31]} O-O {[%emt 0:00:09]} 9. Be3 {[%emt 0:01:44]} Nbd7 {[%emt 0:07:10]} 10. Qd2 {[%emt 0:01:50]} Nb6 {[%emt 0:00:59]} 11. Bb3 {[%emt 0:00:51]} Qa6 {[%emt 0:04:26]} 12. Bh6 {[%emt 0:01:32]} Nc4 {[%emt 0:01:43]} 13. Bxc4 {[%emt 0:03:56]} Qxc4 {[%emt 0:00:08]} 14. Bxg7 {[%emt 0:00:09]} Kxg7 {[%emt 0:00:02]} 15. Rfe1 {[%emt 0:02:08]} Rd8 {[%emt 0:04:57]} 16. Qe3 {[%emt 0:01:47]} Qb4 {[%emt 0:00:56]} 17. b3 {[%emt 0:03:33]} Bf5 {[%emt 0:03:48]} 18. Rac1 {[%emt 0:02:09]} h5 {[%emt 0:04:58]} 19. Ng3 {[%emt 0:01:42]} Be6 {[%emt 0:00:47]} 20. Rcd1 {[%emt 0:06:09]} h4 {[%emt 0:03:50]} 21. Nge4 {[%emt 0:01:01]} Bf5 {[%emt 0:01:22]} 22. f3 {[%emt 0:02:28]} Nd5 {[%emt 0:06:36]} 23. Nxd5 {[%emt 0:11:21]} cxd5 {[%emt 0:00:23]} 24. c3 {[%emt 0:01:55]} Qa3 {[%emt 0:01:44]} 25. Ng5 {[%emt 0:07:11]} Qd6 {[%emt 0:06:50]} 26. f4 {[%emt 0:03:54]} e6 {[%emt 0:00:57]} 27. Qe5+ {[%emt 0:02:55]} Qxe5 {[%emt 0:00:07]} 28. fxe5 {[%emt 0:00:11]} Rac8 {[%emt 0:02:35]} 29. Re3 {[%emt 0:04:46]} Rc7 {[%emt 0:03:00]} 30. Nf3 {[%emt 0:01:25]} Rh8 {[%emt 0:02:02]} 31. Kf2 {[%emt 0:01:57]} Rh5 {[%emt 0:00:13]} 32. Ke2 {[%emt 0:01:45]} g5 {[%emt 0:00:22]} 33. Nh2 {[%emt 0:02:02]} Rh8 {[%emt 0:01:11]} 34. Kd2 {[%emt 0:01:11]} b5 {[%emt 0:00:15]} 35. Rc1 {[%emt 0:00:51]} Rhc8 {[%emt 0:01:50]} 36. Ng4 {[%emt 0:01:13]} Bxg4 {[%emt 0:04:09]} 37. hxg4 {[%emt 0:00:07]} b4 {[%emt 0:00:02]} 38. Rf3 {[%emt 0:01:08]} Kg8 {[%emt 0:06:00]} 39. Rc2 {[%emt 0:00:28]} Kg7 {[%emt 0:00:41]} 40. Rc1 {[%emt 0:00:12]} Rxc3 {[%emt 0:03:09]} 41. Rcxc3 {[%emt 0:04:41]} Rxc3 {[%emt 0:00:07]} 42. Rxc3 {[%emt 0:00:20]} bxc3+ {[%emt 0:00:04]} 43. Kxc3 {[%emt 0:00:10]} f5 {[%emt 0:01:28]} 44. gxf5 {[%emt 0:01:29]} g4 {[%emt 0:00:05]} 45. f6+ {[%emt 0:00:33]} Kf7 {[%emt 0:00:05]} 46. Kd3 {[%emt 0:00:03]} h3 {[%emt 0:00:04]} 47. Ke2 {[%emt 0:00:03]} h2 {[%emt 0:00:04]} 1/2-1/2

[Event "Czech Open-E Teams 2022"]
[Site "Pardubice"]
[Date "2022.07.17"]
[Round "7.34"]
[White "Neuman, Petr"]
[Black "Ocelak, Jakub"]
[Result "1-0"]
[ECO "C44"]
[WhiteElo "2378"]
[BlackElo "2120"]
[Annotator "ChessBase"]
[PlyCount "77"]
[EventDate "2022.07.14"]
[EventType "team-tourn"]
[EventCountry "CZE"]
[SourceTitle "playchess.com"]
[Source "ChessBase"]
[SourceQuality "1"]
[TimeControl "5400+30"]

1. e4 {[%emt 0:00:07]} e5 {[%emt 0:00:03]} 2. Nf3 {[%emt 0:00:15]} Nc6 {[%emt 0:00:05]} 3. c3 {[%emt 0:00:04]} Nf6 {[%emt 0:04:37]} 4. d3 {[%emt 0:00:04]} d6 {[%emt 0:03:01]} 5. g3 {[%emt 0:00:18]} g6 {[%emt 0:00:23]} 6. Bg2 {[%emt 0:00:00]} Bg7 {[%emt 0:00:00]} 7. O-O {[%emt 0:00:00]} O-O {[%emt 0:00:04]} 8. Re1 {[%emt 0:00:20]} Re8 {[%emt 0:01:20]} 9. b4 {[%emt 0:00:12]} h6 {[%emt 0:03:45]} 10. Bb2 {[%emt 0:00:25]} Qe7 {[%emt 0:08:59]} 11. Nbd2 {[%emt 0:03:21]} Qf8 {[%emt 0:02:23]} 12. a3 {[%emt 0:00:42]} Kh7 {[%emt 0:02:46]} 13. d4 {[%emt 0:00:22]} Nd7 {[%emt 0:09:32]} 14. Qc2 {[%emt 0:01:19]} a5 {[%emt 0:00:57]} 15. d5 {[%emt 0:01:21]} Ne7 {[%emt 0:01:09]} 16. c4 {[%emt 0:00:13]} c5 {[%emt 0:00:38]} 17. dxc6 {[%emt 0:01:05]} bxc6 {[%emt 0:02:03]} 18. Nb3 {[%emt 0:01:05]} axb4 19. axb4 {[%emt 0:02:13]} Rb8 {[%emt 0:02:09]} 20. Qd2 {[%emt 0:02:05]} c5 {[%emt 0:12:48]} 21. b5 {[%emt 0:00:31]} Nb6 {[%emt 0:00:10]} 22. Qd3 {[%emt 0:05:31]} Be6 {[%emt 0:02:14]} 23. Nfd2 {[%emt 0:00:05]} Nec8 {[%emt 0:04:57]} 24. Bc3 {[%emt 0:05:10]} f5 {[%emt 0:01:33]} 25. Na5 {[%emt 0:02:17]} f4 {[%emt 0:00:17]} 26. gxf4 {[%emt 0:09:02]} Qxf4 {[%emt 0:00:59]} 27. Bh3 {[%emt 0:00:34]} Bg8 {[%emt 0:06:43]} 28. Re3 {[%emt 0:01:43]} h5 {[%emt 0:03:24]} 29. Rf3 {[%emt 0:00:25]} Qh4 {[%emt 0:00:10]} 30. Rg3 {[%emt 0:02:38]} Bh6 {[%emt 0:00:47]} 31. Nf3 {[%emt 0:00:43]} Qf6 {[%emt 0:00:06]} 32. Kh1 {[%emt 0:04:22]} Bf4 {[%emt 0:05:46]} 33. Rg2 {[%emt 0:02:03]} g5 {[%emt 0:01:10]} 34. Bf5+ {[%emt 0:07:58]} Kh6 {[%emt 0:00:51]} 35. Nxg5 {[%emt 0:00:51]} Bxg5 {[%emt 0:02:31]} 36. Rag1 {[%emt 0:02:50]} Bf7 {[%emt 0:01:11]} 37. Rxg5 {[%emt 0:00:48]} Qxg5 {[%emt 0:00:08]} 38. Bd2 {[%emt 0:00:07]} Qxd2 {[%emt 0:00:12]} 39. Qxd2# {[%emt 0:00:06]} 1-0

[Event "Czech Open-E Teams 2022"]
[Site "Pardubice"]
[Date "2022.07.17"]
[Round "7.35"]
[White "Bezdek, Tomas"]
[Black "Urban, Tomas"]
[Result "1-0"]
[ECO "B01"]
[WhiteElo "2061"]
[BlackElo "1815"]
[Annotator "TA"]
[PlyCount "49"]
[EventDate "2022.07.14"]
[EventType "team-tourn"]
[EventCountry "CZE"]
[SourceTitle "playchess.com"]
[Source "ChessBase"]
[SourceQuality "1"]
[TimeControl "5400+30"]

{[%evp 9,49,46,54,24,69,39,33,-8,-1,-4,-8,-10,-9,-13,-13,-54,14,8,13,-8,0,-28,-11,-20,-16,-19,-20,-100,-106,-116,-103,-95,18,9,17,14,0,0,0,8,112,104]} 1. e4 {[%emt 0:00:05]} d5 {[%emt 0:00:21]} 2. exd5 {[%emt 0:00:21]} Nf6 {[%emt 0:00:21]} 3. d4 {[%emt 0:00:09]} Qxd5 {[%emt 0:00:36]} 4. Nc3 {[%emt 0:00:29]} Qa5 {[%emt 0:00:27]} 5. Bd2 {[%emt 0:02:24]} c6 {[%emt 0:00:21]} 6. h3 {[%emt 0:03:03] B01: Scandinavian Defence.} Qc7 {[%emt 0:01:39]} 7. Bc4 {[%emt 0:01:13]} Bf5 {[%emt 0:01:28]} 8. Nge2 {[%emt 0:00:43] White is slightly better.} e6 {[%emt 0:02:13]} 9. Bf4 {[%emt 0:11:52]} Bd6 {[%emt 0:01:25]} 10. Bxd6 {[%emt 0:00:02]} Qxd6 {[%emt 0:00:15] [#]} 11. Qd2 $146 {[%emt 0:00:50]} ({Predecessor:} 11. Bd3 Bxd3 12. Qxd3 Nbd7 13. O-O-O O-O-O 14. a3 Nb6 15. Qg3 Qxg3 16. Nxg3 Nbd5 17. Nxd5 exd5 {0-1 (28) Fragkou,M (1462)-Serefidou,D (1634) Kallithea 2009}) 11... Nbd7 {[%emt 0:00:59]} 12. O-O-O {[%emt 0:02:09]} Nb6 {[%emt 0:02:58]} ({Better is} 12... b5 $1 $15 13. Bd3 b4) 13. Bb3 $11 {[%emt 0:01:35]} O-O-O {[%emt 0:09:13]} 14. Ng3 {[%emt 0:13:34]} Bg6 {[%emt 0:03:28]} 15. Nce2 {[%emt 0:00:50]} Rd7 {[%emt 0:07:59]} 16. Nf4 {[%emt 0:07:01]} Rhd8 {[%emt 0:03:20]} 17. Nxg6 {[%emt 0:01:23]} hxg6 {[%emt 0:01:09]} 18. Ne2 {[%emt 0:07:14] [#]} (18. Qg5 $11) 18... c5 $1 $17 {[%emt 0:06:09] Threatens to win with ...c4.} 19. Qa5 {[%emt 0:03:27][%csl LRa7,LRc5]} Ne4 {[%emt 0:11:24]} 20. Rhf1 {[%emt 0:04:58]} Qc6 {[%emt 0:07:00]} (20... Qe7 $17 21. Nc3 Nxc3 22. Qxc3 Rxd4 23. Rxd4 Rxd4) 21. f3 $11 {[%emt 0:09:23]} c4 {[%emt 0:07:41]} 22. fxe4 {[%emt 0:00:47] [#] aiming for d5.} cxb3 {[%emt 0:00:25]} 23. axb3 {[%emt 0:01:54] d5 is the strong threat.} Qxe4 {[%emt 0:03:26]} 24. Nc3 Qe3+ (24... Qxg2 $11 {keeps the balance.} 25. Qxa7 Qc6) 25. Kb1 {Weighted Error Value: White=0.20 (precise) /Black=0.29 (precise)} 1-0

[Event "Czech Open-E Teams 2022"]
[Site "Pardubice"]
[Date "2022.07.17"]
[Round "7.36"]
[White "Svadlenka, Jaroslav"]
[Black "Kurek, Pavel"]
[Result "0-1"]
[ECO "B22"]
[WhiteElo "1872"]
[BlackElo "1829"]
[Annotator "NA COMBH"]
[PlyCount "100"]
[EventDate "2022.07.14"]
[EventType "team-tourn"]
[EventCountry "CZE"]
[SourceTitle "playchess.com"]
[Source "ChessBase"]
[SourceQuality "1"]
[TimeControl "5400+30"]

1. e4 {[%emt 0:00:03]} c5 {[%emt 0:00:11]} 2. c3 {[%emt 0:00:10]} d5 {[%emt 0:00:26]} 3. exd5 {[%emt 0:00:09]} Qxd5 {[%emt 0:00:13]} 4. d4 {[%emt 0:00:32]} Nc6 {[%emt 0:01:49]} 5. Nf3 {[%emt 0:00:15]} Bg4 {[%emt 0:08:53]} 6. Be2 {[%emt 0:00:17]} e6 {[%emt 0:00:47]} 7. Na3 {[%emt 0:00:31]} cxd4 {[%emt 0:01:06]} 8. Nb5 {[%emt 0:00:30]} O-O-O {[%emt 0:13:17]} 9. Nbxd4 {[%emt 0:03:05]} Bc5 {[%emt 0:03:02]} 10. Qc2 {[%emt 0:09:50]} Nge7 {[%emt 0:09:57]} 11. O-O {[%emt 0:05:38]} Bxd4 {[%emt 0:03:37]} 12. cxd4 {[%emt 0:04:21]} Nf5 {[%emt 0:02:25]} 13. h3 {[%emt 0:00:30]} Bxf3 {[%emt 0:00:30]} 14. Bxf3 {[%emt 0:00:07]} Nfxd4 {[%emt 0:00:06]} 15. Bxd5 {[%emt 0:04:16]} Nxc2 {[%emt 0:00:06]} 16. Bxc6 {[%emt 0:00:07]} Nxa1 {[%emt 0:00:47]} 17. Be4 {[%emt 0:00:11]} Rd4 {[%emt 0:00:14]} 18. Bf3 {[%emt 0:09:04]} Nc2 {[%emt 0:00:42]} 19. a3 {[%emt 0:01:01]} Rhd8 {[%emt 0:03:01]} 20. b4 {[%emt 0:02:33]} Rc4 {[%emt 0:03:04]} 21. Be2 {[%emt 0:00:39]} Re4 {[%emt 0:02:18]} 22. Bd1 {[%emt 0:02:00]} Ne1 {[%emt 0:00:18]} 23. Bb3 {[%emt 0:02:09]} Rd3 {[%emt 0:03:15]} 24. Ba4 {[%emt 0:00:04]} a6 {[%emt 0:03:22]} 25. Be8 {[%emt 0:00:31]} f6 {[%emt 0:03:46]} 26. Be3 {[%emt 0:01:17]} Nc2 {[%emt 0:10:25]} 27. Rc1 {[%emt 0:01:01]} Rc4 {[%emt 0:00:16]} 28. Bf7 {[%emt 0:03:23]} Kd7 {[%emt 0:04:08]} 29. Bc5 {[%emt 0:00:34]} Rcc3 {[%emt 0:08:48]} 30. Bg8 {[%emt 0:03:10]} Nd4 {[%emt 0:03:26]} 31. Re1 {[%emt 0:01:43]} Rc1 {[%emt 0:01:41]} 32. Bxe6+ {[%emt 0:00:17]} Kc6 {[%emt 0:00:20]} 33. Rxc1 {[%emt 0:00:58]} Ne2+ {[%emt 0:00:04]} 34. Kh2 {[%emt 0:00:07]} Nxc1 {[%emt 0:00:03]} 35. Bf5 {[%emt 0:00:11]} Rxa3 {[%emt 0:00:21]} 36. Be4+ {[%emt 0:01:00]} Kb5 {[%emt 0:00:59]} 37. Bxb7 {[%emt 0:00:39]} Nd3 {[%emt 0:00:30]} 38. Bf8 {[%emt 0:00:45]} Nxf2 {[%emt 0:01:03]} 39. Bxg7 {[%emt 0:00:24]} f5 {[%emt 0:00:12]} 40. Bf8 {[%emt 0:01:54]} Nd3 {[%emt 0:01:41]} 41. Bc8 {[%emt 0:00:23]} f4 {[%emt 0:03:39]} 42. Bd6 {[%emt 0:05:04]} Ra2 43. Bg4 {[%emt 0:00:59]} Ne1 {[%emt 0:00:34]} 44. Bxf4 {[%emt 0:00:30]} Rxg2+ {[%emt 0:00:06]} 45. Kh1 {[%emt 0:03:00]} Kxb4 {[%emt 0:00:04]} 46. Bd6+ {[%emt 0:00:02]} Kc4 {[%emt 0:01:22]} 47. Be6+ {[%emt 0:00:33]} Kd4 {[%emt 0:01:12]} 48. Bc7 {[%emt 0:01:08]} Rc2 {[%emt 0:02:02]} 49. Bb6+ {[%emt 0:00:20]} Ke5 {[%emt 0:00:10]} 50. Bg8 {[%emt 0:00:27]} Nf3 {[%emt 0:00:08]} 0-1

[Event "Czech Open-E Teams 2022"]
[Site "Pardubice"]
[Date "2022.07.17"]
[Round "7.37"]
[White "Slampa, Jan"]
[Black "Kacirek, Petr"]
[Result "1/2-1/2"]
[ECO "D31"]
[WhiteElo "2254"]
[BlackElo "2245"]
[Annotator "ChessBase"]
[PlyCount "76"]
[EventDate "2022.07.14"]
[EventType "team-tourn"]
[EventCountry "CZE"]
[SourceTitle "playchess.com"]
[Source "ChessBase"]
[SourceQuality "1"]
[TimeControl "5400+30"]

1. d4 {[%emt 0:00:04]} e6 {[%emt 0:00:54]} 2. c4 {[%emt 0:00:06]} d5 {[%emt 0:00:08]} 3. Nc3 {[%emt 0:00:07]} c6 {[%emt 0:00:09]} 4. Nf3 {[%emt 0:00:08]} f5 {[%emt 0:00:06]} 5. Bf4 {[%emt 0:03:13]} Nf6 {[%emt 0:00:12]} 6. e3 {[%emt 0:00:20]} Be7 {[%emt 0:00:17]} 7. Bd3 {[%emt 0:00:22]} O-O {[%emt 0:00:15]} 8. Qc2 {[%emt 0:00:49]} b6 {[%emt 0:02:54]} 9. h3 {[%emt 0:03:29]} Ba6 {[%emt 0:07:00]} 10. b3 {[%emt 0:08:35]} Ne4 {[%emt 0:05:06]} 11. O-O {[%emt 0:03:54]} Nd7 {[%emt 0:05:45]} 12. Ne2 {[%emt 0:11:11]} Rc8 {[%emt 0:03:44]} 13. a4 {[%emt 0:06:40]} Bb4 {[%emt 0:04:43]} 14. a5 {[%emt 0:03:29]} bxa5 {[%emt 0:08:22]} 15. c5 {[%emt 0:00:17]} Bxd3 {[%emt 0:01:00]} 16. Qxd3 {[%emt 0:00:02]} g5 {[%emt 0:01:17]} 17. Bh2 {[%emt 0:00:59]} g4 {[%emt 0:07:29]} 18. hxg4 {[%emt 0:09:59]} fxg4 {[%emt 0:00:06]} 19. Ne5 {[%emt 0:00:59]} g3 {[%emt 0:04:03]} 20. Bxg3 {[%emt 0:06:10]} Nxg3 {[%emt 0:01:27]} 21. Nxg3 {[%emt 0:00:39]} Nxe5 {[%emt 0:00:05]} 22. dxe5 {[%emt 0:00:03]} Qg5 {[%emt 0:00:49]} 23. Qd4 {[%emt 0:01:37]} Rc7 {[%emt 0:01:44]} 24. Ne2 {[%emt 0:01:15]} Rg7 {[%emt 0:05:29]} 25. g3 {[%emt 0:00:15]} Qh5 {[%emt 0:05:42]} 26. Ra2 {[%emt 0:03:59]} Qf3 {[%emt 0:04:57]} 27. Nf4 {[%emt 0:06:47]} Rf5 {[%emt 0:01:35]} 28. Rc2 {[%emt 0:07:54]} Rgg5 {[%emt 0:03:12]} 29. Qd1 {[%emt 0:01:51]} Qe4 {[%emt 0:02:05]} 30. Ng2 {[%emt 0:01:28]} Rg7 {[%emt 0:03:28]} 31. f3 {[%emt 0:05:57]} Qxe5 {[%emt 0:00:44]} 32. g4 {[%emt 0:00:01]} Rf8 {[%emt 0:01:18]} 33. Qd3 {[%emt 0:01:10]} Qf6 {[%emt 0:00:43]} 34. Nf4 {[%emt 0:00:16]} Qe7 {[%emt 0:01:54]} 35. Nh5 {[%emt 0:00:24]} Rg6 {[%emt 0:01:41]} 36. Nf4 {[%emt 0:00:21]} Rg7 {[%emt 0:00:48]} 37. Nh5 {[%emt 0:00:07]} Rg6 {[%emt 0:00:10]} 38. Nf4 {[%emt 0:01:26]} Rg5 1/2-1/2

[Event "Czech Open-E Teams 2022"]
[Site "Pardubice"]
[Date "2022.07.17"]
[Round "7.38"]
[White "Horak, Jan"]
[Black "Jedlicka, Ales"]
[Result "1/2-1/2"]
[ECO "B23"]
[WhiteElo "2163"]
[BlackElo "2216"]
[Annotator "ChessBase"]
[PlyCount "83"]
[EventDate "2022.07.14"]
[EventType "team-tourn"]
[EventCountry "CZE"]
[SourceTitle "playchess.com"]
[Source "ChessBase"]
[SourceQuality "1"]
[TimeControl "5400+30"]

1. e4 {[%emt 0:00:10]} c5 {[%emt 0:00:55]} 2. Nc3 {[%emt 0:00:53]} a6 {[%emt 0:04:04]} 3. Bc4 {[%emt 0:09:20]} e6 {[%emt 0:02:36]} 4. a4 {[%emt 0:01:23]} Nc6 {[%emt 0:01:24]} 5. Nf3 {[%emt 0:01:01]} Qc7 {[%emt 0:01:21]} 6. O-O {[%emt 0:00:42]} Nge7 {[%emt 0:02:34]} 7. d3 {[%emt 0:01:56]} Ng6 {[%emt 0:01:52]} 8. Be3 {[%emt 0:03:58]} Be7 {[%emt 0:06:28]} 9. Qd2 {[%emt 0:04:25]} b6 {[%emt 0:03:32]} 10. Bb3 {[%emt 0:11:56]} O-O {[%emt 0:10:34]} 11. Ne1 {[%emt 0:06:45]} Bb7 {[%emt 0:03:07]} 12. f4 {[%emt 0:01:14]} Nd4 {[%emt 0:02:31]} 13. Ba2 {[%emt 0:01:35]} f5 {[%emt 0:00:52]} 14. Nf3 {[%emt 0:05:15]} Bf6 {[%emt 0:06:32]} 15. Ng5 {[%emt 0:12:13]} Bxg5 {[%emt 0:06:40]} 16. fxg5 {[%emt 0:00:31]} Kh8 {[%emt 0:02:04]} 17. Rac1 {[%emt 0:10:21]} f4 {[%emt 0:09:41]} 18. Bxd4 {[%emt 0:09:51]} cxd4 {[%emt 0:00:13]} 19. Ne2 {[%emt 0:00:05]} Qe5 {[%emt 0:01:21]} 20. Rf3 {[%emt 0:00:52]} Qxg5 {[%emt 0:06:24]} 21. Nxd4 {[%emt 0:03:22]} Nh4 {[%emt 0:06:40]} 22. Rh3 {[%emt 0:05:14]} Qf6 {[%emt 0:01:52]} 23. c3 {[%emt 0:01:12]} g5 {[%emt 0:00:53]} 24. Qf2 {[%emt 0:01:36]} Ng6 {[%emt 0:03:44]} 25. g3 {[%emt 0:04:36]} Ne5 {[%emt 0:00:59]} 26. Rd1 {[%emt 0:00:38]} Ng4 {[%emt 0:01:05]} 27. Qf3 {[%emt 0:00:34]} Ne3 {[%emt 0:01:32]} 28. Qh5 {[%emt 0:00:57]} Rf7 {[%emt 0:00:25]} 29. e5 {[%emt 0:00:43]} Qg7 {[%emt 0:00:50]} 30. Bxe6 {[%emt 0:01:27]} dxe6 {[%emt 0:02:17]} 31. Nxe6 {[%emt 0:00:01]} Qg8 {[%emt 0:01:50]} 32. Re1 {[%emt 0:00:13]} g4 {[%emt 0:01:43]} 33. Rh4 {[%emt 0:01:07]} fxg3 {[%emt 0:01:59]} 34. Rxe3 {[%emt 0:00:48]} g2 {[%emt 0:00:36]} 35. Re1 {[%emt 0:00:35]} Raf8 {[%emt 0:00:41]} 36. Nxf8 {[%emt 0:00:23]} Qxf8 {[%emt 0:00:24]} 37. Qxf7 {[%emt 0:00:23]} Qxf7 {[%emt 0:00:08]} 38. Rxg4 {[%emt 0:00:30]} h5 {[%emt 0:03:47]} 39. Rg3 {[%emt 0:00:33]} Bd5 {[%emt 0:01:48]} 40. Rge3 {[%emt 0:00:34]} Be6 {[%emt 0:00:57]} 41. Re4 {[%emt 0:00:19]} Qf5 {[%emt 0:01:25]} 42. R4e3 {[%emt 0:00:12]} 1/2-1/2